[Event "Titled Tuesday Blitz December 7 2021"]
[White "Mezentsev, Ivan"]
[Black "Rasulov, Vugar"]
[WhiteFideId "13706195"]
[BlackFideId "13402390"]
[WhiteElo "2474"]
[BlackElo "2902"]
[Result "1-0"]
[Round "01"]
[TimeControl "180+1"]
[Date "2021.12.07"]
[WhiteClock "0:00:07"]
[BlackClock "0:00:16"]

1. d4 {[%clk 0:02:59]}  Nf6 {[%clk 0:02:59]} 2. Nf3 {[%clk 0:02:59]}  b6 {[%clk 0:02:57]} 3. g3 {[%clk 0:02:57]}  Bb7 {[%clk 0:02:58]} 4. Bg2 {[%clk 0:02:57]}  g6 {[%clk 0:02:58]} 5. O-O {[%clk 0:02:56]}  Bg7 {[%clk 0:02:59]} 6. c4 {[%clk 0:02:56]}  O-O {[%clk 0:02:59]} 7. Nc3 {[%clk 0:02:56]}  e6 {[%clk 0:03:00]} 8. Qc2 {[%clk 0:02:44]}  c5 {[%clk 0:02:55]} 9. d5 {[%clk 0:02:32]}  exd5 {[%clk 0:02:55]} 10. Nd2 {[%clk 0:02:29]}  Nc6 {[%clk 0:02:47]} 11. cxd5 {[%clk 0:02:25]}  Nb4 {[%clk 0:02:46]} 12. Qb3 {[%clk 0:02:23]}  d6 {[%clk 0:02:45]} 13. a3 {[%clk 0:02:21]}  Na6 {[%clk 0:02:45]} 14. Nc4 {[%clk 0:02:18]}  Nc7 {[%clk 0:02:43]} 15. Rd1 {[%clk 0:02:13]}  Ba6 {[%clk 0:02:43]} 16. Bf4 {[%clk 0:02:11]}  Bxc4 {[%clk 0:02:42]} 17. Qxc4 {[%clk 0:02:11]}  Re8 {[%clk 0:02:42]} 18. a4 {[%clk 0:02:01]}  a6 {[%clk 0:02:40]} 19. h3 {[%clk 0:01:50]}  Rb8 {[%clk 0:02:40]} 20. b4 {[%clk 0:01:37]}  b5 {[%clk 0:02:26]} 21. axb5 {[%clk 0:01:37]}  axb5 {[%clk 0:02:27]} 22. Qb3 {[%clk 0:01:37]}  Nh5 {[%clk 0:02:21]} 23. Bd2 {[%clk 0:01:20]}  c4 {[%clk 0:02:12]} 24. Qc2 {[%clk 0:01:17]}  Ra8 {[%clk 0:02:09]} 25. g4 {[%clk 0:01:15]}  Nf6 {[%clk 0:02:09]} 26. Bf4 {[%clk 0:01:15]}  Qd7 {[%clk 0:02:07]} 27. Rxa8 {[%clk 0:01:09]}  Rxa8 {[%clk 0:02:06]} 28. e4 {[%clk 0:01:10]}  Nfe8 {[%clk 0:02:00]} 29. e5 {[%clk 0:01:01]}  dxe5 {[%clk 0:01:59]} 30. d6 {[%clk 0:00:59]}  Ne6 {[%clk 0:01:48]} 31. Bxa8 {[%clk 0:00:54]}  Nd4 {[%clk 0:01:48]} 32. Qe4 {[%clk 0:00:45]}  Nxd6 {[%clk 0:01:38]} 33. Rxd4 {[%clk 0:00:36]}  exd4 {[%clk 0:01:36]} 34. Bxd6 {[%clk 0:00:33]}  dxc3 {[%clk 0:01:30]} 35. Bc5 {[%clk 0:00:26]}  h5 {[%clk 0:01:28]} 36. Bd5 {[%clk 0:00:24]}  hxg4 {[%clk 0:01:25]} 37. hxg4 {[%clk 0:00:24]}  g5 {[%clk 0:01:14]} 38. Kg2 {[%clk 0:00:22]}  Bf6 {[%clk 0:01:05]} 39. Qg6+ {[%clk 0:00:17]}  Bg7 {[%clk 0:01:05]} 40. Qe4 {[%clk 0:00:12]}  Bf6 {[%clk 0:00:49]} 41. Bc6 {[%clk 0:00:12]}  Qd3 {[%clk 0:00:42]} 42. Qe8+ {[%clk 0:00:11]}  Kg7 {[%clk 0:00:42]} 43. Bf8+ {[%clk 0:00:11]}  Kg8 {[%clk 0:00:38]} 44. Be7+ {[%clk 0:00:07]}  Kg7 {[%clk 0:00:37]} 45. Bf8+ {[%clk 0:00:05]}  Kg8 {[%clk 0:00:37]} 46. Be4 {[%clk 0:00:05]}  Qd8 {[%clk 0:00:34]} 47. Qxd8 {[%clk 0:00:04]}  Bxd8 {[%clk 0:00:34]} 48. Bc5 {[%clk 0:00:05]}  Bf6 {[%clk 0:00:33]} 49. Kf3 {[%clk 0:00:05]}  Be5 {[%clk 0:00:28]} 50. Ke3 {[%clk 0:00:05]}  Bh2 {[%clk 0:00:19]} 51. Kd4 {[%clk 0:00:05]}  Bg1 {[%clk 0:00:14]} 52. Kxc3 {[%clk 0:00:05]}  Kg7 {[%clk 0:00:13]} 53. Be3 {[%clk 0:00:05]}  Kf6 {[%clk 0:00:13]} 54. Bc6 {[%clk 0:00:05]}  Bh2 {[%clk 0:00:12]} 55. Bxb5 {[%clk 0:00:05]}  Ke5 {[%clk 0:00:13]} 56. Bxc4 {[%clk 0:00:04]}  Ke4 {[%clk 0:00:14]} 57. Bxf7 {[%clk 0:00:04]}  Bd6 {[%clk 0:00:14]} 58. Kc4 {[%clk 0:00:04]}  Be7 {[%clk 0:00:13]} 59. Be6 {[%clk 0:00:05]}  Bd6 {[%clk 0:00:13]} 60. Bf5+ {[%clk 0:00:05]}  Kf3 {[%clk 0:00:14]} 61. b5 {[%clk 0:00:05]}  Bb8 {[%clk 0:00:14]} 62. b6 {[%clk 0:00:05]}  Ke2 {[%clk 0:00:15]} 63. b7 {[%clk 0:00:05]}  Kf3 {[%clk 0:00:16]} 64. Kd5 {[%clk 0:00:06]}  Ke2 {[%clk 0:00:16]} 65. Bxg5 {[%clk 0:00:05]}  Kf3 {[%clk 0:00:16]} 66. Be7 {[%clk 0:00:06]}  Kxf2 {[%clk 0:00:16]} 67. Bd6 {[%clk 0:00:06]}  Ba7 {[%clk 0:00:16]} 68. Bc5+ {[%clk 0:00:07]} 1-0


[Site "https://www.chess.com"]

[Event "Titled Tuesday Blitz December 7 2021"]
[White "Mirzoev, Azer"]
[Black "Ozdemir, Serhan Berat"]
[WhiteFideId "13400304"]
[BlackFideId "6374611"]
[WhiteElo "2704"]
[BlackElo "2395"]
[Result "1-0"]
[Round "01"]
[TimeControl "180+1"]
[Date "2021.12.07"]
[WhiteClock "0:00:03"]
[BlackClock "0:00:02"]

1. c4 {[%clk 0:02:58]}  Nf6 {[%clk 0:03:00]} 2. Nc3 {[%clk 0:02:58]}  g6 {[%clk 0:03:00]} 3. g3 {[%clk 0:02:58]}  Bg7 {[%clk 0:03:01]} 4. Bg2 {[%clk 0:02:59]}  O-O {[%clk 0:03:01]} 5. Nf3 {[%clk 0:02:58]}  d6 {[%clk 0:03:01]} 6. d3 {[%clk 0:02:58]}  c6 {[%clk 0:02:59]} 7. O-O {[%clk 0:02:58]}  Qa5 {[%clk 0:03:00]} 8. h3 {[%clk 0:02:42]}  e5 {[%clk 0:02:59]} 9. a3 {[%clk 0:02:38]}  Re8 {[%clk 0:02:55]} 10. Nd2 {[%clk 0:02:37]}  Qd8 {[%clk 0:02:54]} 11. b4 {[%clk 0:02:34]}  d5 {[%clk 0:02:51]} 12. Bb2 {[%clk 0:02:34]}  d4 {[%clk 0:02:47]} 13. Nce4 {[%clk 0:02:33]}  Nxe4 {[%clk 0:02:47]} 14. Nxe4 {[%clk 0:02:33]}  f5 {[%clk 0:02:47]} 15. Nc5 {[%clk 0:02:33]}  b6 {[%clk 0:02:46]} 16. Nb3 {[%clk 0:02:32]}  Be6 {[%clk 0:02:42]} 17. b5 {[%clk 0:02:30]}  Qd7 {[%clk 0:02:41]} 18. a4 {[%clk 0:02:29]}  e4 {[%clk 0:02:33]} 19. Kh2 {[%clk 0:02:17]}  cxb5 {[%clk 0:02:24]} 20. axb5 {[%clk 0:02:15]}  Bf7 {[%clk 0:02:15]} 21. Nd2 {[%clk 0:02:05]}  Qb7 {[%clk 0:02:09]} 22. Qb1 {[%clk 0:01:56]}  Nd7 {[%clk 0:01:49]} 23. dxe4 {[%clk 0:01:56]}  fxe4 {[%clk 0:01:33]} 24. Nxe4 {[%clk 0:01:54]}  Qc7 {[%clk 0:01:31]} 25. Rd1 {[%clk 0:01:43]}  Qxc4 {[%clk 0:00:58]} 26. Nd6 {[%clk 0:01:40]}  Qxe2 {[%clk 0:00:50]} 27. Nxf7 {[%clk 0:01:32]}  Kxf7 {[%clk 0:00:45]} 28. Bxd4 {[%clk 0:01:31]}  Bxd4 {[%clk 0:00:32]} 29. Rxd4 {[%clk 0:01:30]}  Nf6 {[%clk 0:00:33]} 30. Ra2 {[%clk 0:01:16]}  Qe5 {[%clk 0:00:20]} 31. Rda4 {[%clk 0:00:49]}  Rad8 {[%clk 0:00:17]} 32. Rxa7+ {[%clk 0:00:49]}  Re7 {[%clk 0:00:17]} 33. Qb3+ {[%clk 0:00:45]}  Kg7 {[%clk 0:00:15]} 34. Rxe7+ {[%clk 0:00:25]}  Qxe7 {[%clk 0:00:16]} 35. Qc3 {[%clk 0:00:19]}  Rd6 {[%clk 0:00:12]} 36. Rc2 {[%clk 0:00:10]}  Kh6 {[%clk 0:00:08]} 37. Bf3 {[%clk 0:00:09]}  g5 {[%clk 0:00:08]} 38. Kg2 {[%clk 0:00:08]}  Qe6 {[%clk 0:00:06]} 39. Rd2 {[%clk 0:00:07]}  Rxd2 {[%clk 0:00:04]} 40. Qxd2 {[%clk 0:00:07]}  Qe5 {[%clk 0:00:05]} 41. Qb4 {[%clk 0:00:06]}  Kg6 {[%clk 0:00:04]} 42. Qb1+ {[%clk 0:00:05]}  Kg7 {[%clk 0:00:03]} 43. Qd3 {[%clk 0:00:06]}  h5 {[%clk 0:00:04]} 44. Qd8 {[%clk 0:00:05]}  Qxb5 {[%clk 0:00:04]} 45. Qe7+ {[%clk 0:00:05]}  Kg6 {[%clk 0:00:04]} 46. Qe6 {[%clk 0:00:05]}  Qf5 {[%clk 0:00:05]} 47. Qe7 {[%clk 0:00:04]}  g4 {[%clk 0:00:05]} 48. hxg4 {[%clk 0:00:04]}  hxg4 {[%clk 0:00:05]} 49. Bc6 {[%clk 0:00:05]}  b5 {[%clk 0:00:03]} 50. Qf8 {[%clk 0:00:05]}  b4 {[%clk 0:00:03]} 51. Qxb4 {[%clk 0:00:04]}  Qe5 {[%clk 0:00:03]} 52. Qb7 {[%clk 0:00:04]}  Qf5 {[%clk 0:00:02]} 53. Qb8 {[%clk 0:00:04]}  Qe5 {[%clk 0:00:02]} 54. Qxe5 {[%clk 0:00:03]}  Nh5 {[%clk 0:00:03]} 55. Be4+ {[%clk 0:00:03]}  Kh6 {[%clk 0:00:02]} 56. Qe6+ {[%clk 0:00:03]}  Kg5 {[%clk 0:00:02]} 57. Qg6# {[%clk 0:00:03]} 1-0


[Site "https://www.chess.com"]

[Event "Titled Tuesday Blitz December 7 2021"]
[White "Muromtsev, Arthur"]
[Black "Begmuratov, Khumoyun"]
[WhiteFideId "4177002"]
[BlackFideId "14210207"]
[WhiteElo "2395"]
[BlackElo "2706"]
[Result "0-1"]
[Round "01"]
[TimeControl "180+1"]
[Date "2021.12.07"]
[WhiteClock "0:00:13"]
[BlackClock "0:00:43"]

1. e4 {[%clk 0:02:56]}  e5 {[%clk 0:02:58]} 2. Nc3 {[%clk 0:02:55]}  Nf6 {[%clk 0:02:56]} 3. g3 {[%clk 0:02:54]}  Nc6 {[%clk 0:02:54]} 4. Bg2 {[%clk 0:02:54]}  g6 {[%clk 0:02:55]} 5. d3 {[%clk 0:02:50]}  Bg7 {[%clk 0:02:55]} 6. f4 {[%clk 0:02:50]}  O-O {[%clk 0:02:55]} 7. Nf3 {[%clk 0:02:50]}  exf4 {[%clk 0:02:45]} 8. Bxf4 {[%clk 0:02:48]}  d5 {[%clk 0:02:45]} 9. e5 {[%clk 0:02:34]}  Re8 {[%clk 0:02:43]} 10. O-O {[%clk 0:02:31]}  Nh5 {[%clk 0:02:36]} 11. Bg5 {[%clk 0:02:24]}  Qd7 {[%clk 0:02:35]} 12. d4 {[%clk 0:02:22]}  Nd8 {[%clk 0:02:28]} 13. Qd2 {[%clk 0:02:17]}  Ne6 {[%clk 0:02:25]} 14. Bh6 {[%clk 0:02:17]}  c6 {[%clk 0:02:12]} 15. Bh3 {[%clk 0:02:09]}  Qe7 {[%clk 0:02:06]} 16. Bxg7 {[%clk 0:02:05]}  Nhxg7 {[%clk 0:02:04]} 17. Ne2 {[%clk 0:01:57]}  Nxd4 {[%clk 0:02:00]} 18. Nexd4 {[%clk 0:01:49]}  Bxh3 {[%clk 0:01:58]} 19. Qh6 {[%clk 0:01:34]}  Bxf1 {[%clk 0:01:38]} 20. Rxf1 {[%clk 0:01:25]}  Ne6 {[%clk 0:01:29]} 21. Nxe6 {[%clk 0:01:22]}  fxe6 {[%clk 0:01:30]} 22. Ng5 {[%clk 0:01:11]}  Rf8 {[%clk 0:01:29]} 23. Rf6 {[%clk 0:01:11]}  Rae8 {[%clk 0:00:54]} 24. h4 {[%clk 0:01:08]}  Rxf6 {[%clk 0:00:51]} 25. exf6 {[%clk 0:01:07]}  Qxf6 {[%clk 0:00:51]} 26. Qxh7+ {[%clk 0:01:07]}  Kf8 {[%clk 0:00:51]} 27. Qxb7 {[%clk 0:00:59]}  Re7 {[%clk 0:00:49]} 28. Qxc6 {[%clk 0:00:43]}  Kg7 {[%clk 0:00:47]} 29. b4 {[%clk 0:00:38]}  Qe5 {[%clk 0:00:44]} 30. Kg2 {[%clk 0:00:30]}  Qe2+ {[%clk 0:00:44]} 31. Kh3 {[%clk 0:00:27]}  Qf1+ {[%clk 0:00:44]} 32. Kh2 {[%clk 0:00:27]}  Qf2+ {[%clk 0:00:44]} 33. Kh3 {[%clk 0:00:27]}  Qf5+ {[%clk 0:00:44]} 34. Kg2 {[%clk 0:00:25]}  d4 {[%clk 0:00:45]} 35. Qd6 {[%clk 0:00:23]}  Qxc2+ {[%clk 0:00:44]} 36. Kh3 {[%clk 0:00:20]}  Qf5+ {[%clk 0:00:43]} 37. Kg2 {[%clk 0:00:20]}  Qd5+ {[%clk 0:00:43]} 38. Qxd5 {[%clk 0:00:18]}  exd5 {[%clk 0:00:44]} 39. Nf3 {[%clk 0:00:15]}  d3 {[%clk 0:00:44]} 40. Kf1 {[%clk 0:00:15]}  Rf7 {[%clk 0:00:44]} 41. Kf2 {[%clk 0:00:13]}  d2 {[%clk 0:00:43]} 0-1


[Site "https://www.chess.com"]

[Event "Titled Tuesday Blitz December 7 2021"]
[White "Nasyrova, Ekaterina"]
[Black "Pranav, V"]
[WhiteFideId "44157797"]
[BlackFideId "25060783"]
[WhiteElo "2490"]
[BlackElo "2985"]
[Result "0-1"]
[Round "01"]
[TimeControl "180+1"]
[Date "2021.12.07"]
[WhiteClock "0:00:09"]
[BlackClock "0:00:09"]

1. d4 {[%clk 0:02:53]}  Nf6 {[%clk 0:02:59]} 2. c4 {[%clk 0:02:52]}  e6 {[%clk 0:02:59]} 3. Nc3 {[%clk 0:02:50]}  Bb4 {[%clk 0:02:59]} 4. e3 {[%clk 0:02:50]}  O-O {[%clk 0:03:00]} 5. Bd2 {[%clk 0:02:50]}  d5 {[%clk 0:03:00]} 6. Nf3 {[%clk 0:02:49]}  b6 {[%clk 0:03:00]} 7. cxd5 {[%clk 0:02:48]}  exd5 {[%clk 0:03:00]} 8. Bd3 {[%clk 0:02:49]}  Bb7 {[%clk 0:03:01]} 9. O-O {[%clk 0:02:49]}  Nbd7 {[%clk 0:03:01]} 10. Ne5 {[%clk 0:02:47]}  a6 {[%clk 0:02:59]} 11. f4 {[%clk 0:02:46]}  Re8 {[%clk 0:02:59]} 12. Be1 {[%clk 0:02:43]}  Be7 {[%clk 0:02:46]} 13. Rf3 {[%clk 0:02:38]}  Nf8 {[%clk 0:02:40]} 14. Rh3 {[%clk 0:02:36]}  c5 {[%clk 0:02:37]} 15. Bh4 {[%clk 0:02:26]}  cxd4 {[%clk 0:02:31]} 16. exd4 {[%clk 0:02:27]}  g6 {[%clk 0:02:30]} 17. f5 {[%clk 0:02:16]}  b5 {[%clk 0:02:18]} 18. fxg6 {[%clk 0:02:11]}  fxg6 {[%clk 0:02:15]} 19. Qd2 {[%clk 0:01:58]}  Qb6 {[%clk 0:02:12]} 20. Bc2 {[%clk 0:01:50]}  Ne4 {[%clk 0:02:04]} 21. Nxe4 {[%clk 0:01:40]}  Bxh4 {[%clk 0:01:58]} 22. Rxh4 {[%clk 0:01:40]}  Rxe5 {[%clk 0:01:57]} 23. Nc5 {[%clk 0:01:30]}  Re7 {[%clk 0:01:56]} 24. Qg5 {[%clk 0:01:28]}  Rae8 {[%clk 0:01:55]} 25. Rf1 {[%clk 0:01:27]}  Re1 {[%clk 0:01:44]} 26. Bb3 {[%clk 0:01:23]}  Rxf1+ {[%clk 0:01:23]} 27. Kxf1 {[%clk 0:01:24]}  Ba8 {[%clk 0:01:10]} 28. Bxd5+ {[%clk 0:01:15]}  Bxd5 {[%clk 0:01:10]} 29. Qxd5+ {[%clk 0:01:16]}  Kg7 {[%clk 0:01:10]} 30. Rf4 {[%clk 0:01:12]}  Qc7 {[%clk 0:01:09]} 31. g3 {[%clk 0:01:01]}  Qe7 {[%clk 0:01:01]} 32. Qb7 {[%clk 0:00:51]}  Qxb7 {[%clk 0:00:53]} 33. Nxb7 {[%clk 0:00:52]}  g5 {[%clk 0:00:41]} 34. Rf5 {[%clk 0:00:49]}  Kg6 {[%clk 0:00:41]} 35. Rd5 {[%clk 0:00:45]}  Ne6 {[%clk 0:00:33]} 36. Nc5 {[%clk 0:00:38]}  Ng7 {[%clk 0:00:33]} 37. Rd6+ {[%clk 0:00:38]}  Kf5 {[%clk 0:00:29]} 38. Kf2 {[%clk 0:00:35]}  a5 {[%clk 0:00:19]} 39. h3 {[%clk 0:00:34]}  h5 {[%clk 0:00:18]} 40. Kf3 {[%clk 0:00:27]}  g4+ {[%clk 0:00:19]} 41. hxg4+ {[%clk 0:00:27]}  hxg4+ {[%clk 0:00:19]} 42. Kf2 {[%clk 0:00:28]}  Rh8 {[%clk 0:00:20]} 43. Rd5+ {[%clk 0:00:27]}  Kg6 {[%clk 0:00:20]} 44. Nd3 {[%clk 0:00:27]}  Rh2+ {[%clk 0:00:19]} 45. Ke3 {[%clk 0:00:27]}  Nh5 {[%clk 0:00:15]} 46. Rxb5 {[%clk 0:00:23]}  Nxg3 {[%clk 0:00:14]} 47. Kf4 {[%clk 0:00:23]}  Ne2+ {[%clk 0:00:13]} 48. Kxg4 {[%clk 0:00:23]}  Nxd4 {[%clk 0:00:11]} 49. Nf4+ {[%clk 0:00:23]}  Kf7 {[%clk 0:00:11]} 50. Rd5 {[%clk 0:00:21]}  Nc6 {[%clk 0:00:10]} 51. b3 {[%clk 0:00:21]}  Rxa2 {[%clk 0:00:10]} 52. Rc5 {[%clk 0:00:22]}  Ne7 {[%clk 0:00:08]} 53. Nd3 {[%clk 0:00:20]}  Ke6 {[%clk 0:00:08]} 54. Kf3 {[%clk 0:00:19]}  Kd6 {[%clk 0:00:08]} 55. Ke3 {[%clk 0:00:16]}  Nd5+ {[%clk 0:00:07]} 56. Kd4 {[%clk 0:00:14]}  Nc7 {[%clk 0:00:07]} 57. Rh5 {[%clk 0:00:11]}  Ne6+ {[%clk 0:00:08]} 58. Kc3 {[%clk 0:00:09]}  Nc7 {[%clk 0:00:08]} 59. Rh6+ {[%clk 0:00:09]}  Kd5 {[%clk 0:00:08]} 60. Rh7 {[%clk 0:00:09]}  Nb5# {[%clk 0:00:09]} 0-1


[Site "https://www.chess.com"]

[Event "Titled Tuesday Blitz December 7 2021"]
[White "Nilsen, Tobias Lang"]
[Black "Golubka, Petro"]
[WhiteFideId "1521624"]
[BlackFideId "14114224"]
[WhiteElo "2420"]
[BlackElo "2744"]
[Result "0-1"]
[Round "01"]
[TimeControl "180+1"]
[Date "2021.12.07"]
[WhiteClock "0:00:02"]
[BlackClock "0:00:08"]

1. e4 {[%clk 0:03:00]}  c5 {[%clk 0:02:17]} 2. Nf3 {[%clk 0:02:56]}  d6 {[%clk 0:02:15]} 3. d4 {[%clk 0:02:56]}  cxd4 {[%clk 0:02:10]} 4. Qxd4 {[%clk 0:02:57]}  a6 {[%clk 0:02:08]} 5. c4 {[%clk 0:02:56]}  Nc6 {[%clk 0:02:06]} 6. Qd2 {[%clk 0:02:55]}  Nf6 {[%clk 0:02:06]} 7. Nc3 {[%clk 0:02:55]}  e5 {[%clk 0:02:06]} 8. h3 {[%clk 0:02:51]}  Be7 {[%clk 0:02:05]} 9. Be2 {[%clk 0:02:51]}  O-O {[%clk 0:02:06]} 10. O-O {[%clk 0:02:51]}  Be6 {[%clk 0:02:06]} 11. b3 {[%clk 0:02:52]}  Qb8 {[%clk 0:02:05]} 12. Bb2 {[%clk 0:02:51]}  Rd8 {[%clk 0:02:05]} 13. Bd3 {[%clk 0:02:50]}  h6 {[%clk 0:02:04]} 14. Nd5 {[%clk 0:02:50]}  b6 {[%clk 0:02:00]} 15. Rfd1 {[%clk 0:02:45]}  Qb7 {[%clk 0:01:58]} 16. Rac1 {[%clk 0:02:44]}  a5 {[%clk 0:01:57]} 17. Qe3 {[%clk 0:02:44]}  Rab8 {[%clk 0:01:56]} 18. Nh4 {[%clk 0:02:41]}  Nd7 {[%clk 0:01:46]} 19. Nf5 {[%clk 0:02:38]}  Bf8 {[%clk 0:01:45]} 20. f4 {[%clk 0:02:31]}  exf4 {[%clk 0:01:43]} 21. Nxf4 {[%clk 0:02:28]}  Nde5 {[%clk 0:01:41]} 22. Qg3 {[%clk 0:02:22]}  Kh8 {[%clk 0:01:36]} 23. Nh5 {[%clk 0:02:06]}  g6 {[%clk 0:01:33]} 24. Nf6 {[%clk 0:02:03]}  Bg7 {[%clk 0:01:24]} 25. Nxg7 {[%clk 0:02:01]}  Kxg7 {[%clk 0:01:24]} 26. Nd5 {[%clk 0:01:55]}  f6 {[%clk 0:01:22]} 27. Rf1 {[%clk 0:01:51]}  Rf8 {[%clk 0:01:21]} 28. Be2 {[%clk 0:01:42]}  a4 {[%clk 0:01:17]} 29. b4 {[%clk 0:01:40]}  a3 {[%clk 0:01:14]} 30. Qxa3 {[%clk 0:01:37]}  Ra8 {[%clk 0:01:14]} 31. Qb3 {[%clk 0:01:37]}  Qa7 {[%clk 0:01:11]} 32. a3 {[%clk 0:01:34]}  b5+ {[%clk 0:01:08]} 33. Kh1 {[%clk 0:01:34]}  Nd4 {[%clk 0:01:06]} 34. Qe3 {[%clk 0:01:14]}  Nxe2 {[%clk 0:01:05]} 35. Qxe2 {[%clk 0:01:14]}  bxc4 {[%clk 0:01:05]} 36. Bxe5 {[%clk 0:01:11]}  dxe5 {[%clk 0:00:43]} 37. Rxc4 {[%clk 0:01:09]}  Qxa3 {[%clk 0:00:43]} 38. Rc7+ {[%clk 0:01:08]}  Rf7 {[%clk 0:00:43]} 39. Rxf7+ {[%clk 0:01:07]}  Bxf7 {[%clk 0:00:44]} 40. Qf2 {[%clk 0:00:50]}  f5 {[%clk 0:00:41]} 41. Qc5 {[%clk 0:00:39]}  Qd3 {[%clk 0:00:32]} 42. Re1 {[%clk 0:00:25]}  Qd2 {[%clk 0:00:26]} 43. Rg1 {[%clk 0:00:21]}  Qd4 {[%clk 0:00:18]} 44. Qc6 {[%clk 0:00:16]}  Bxd5 {[%clk 0:00:14]} 45. exd5 {[%clk 0:00:17]}  Rf8 {[%clk 0:00:14]} 46. d6 {[%clk 0:00:16]}  e4 {[%clk 0:00:14]} 47. d7 {[%clk 0:00:16]}  Rd8 {[%clk 0:00:14]} 48. g4 {[%clk 0:00:12]}  f4 {[%clk 0:00:12]} 49. g5 {[%clk 0:00:11]}  h5 {[%clk 0:00:11]} 50. Rf1 {[%clk 0:00:08]}  f3 {[%clk 0:00:11]} 51. Re1 {[%clk 0:00:07]}  f2 {[%clk 0:00:11]} 52. Rf1 {[%clk 0:00:07]}  e3 {[%clk 0:00:10]} 53. Kg2 {[%clk 0:00:06]}  Rxd7 {[%clk 0:00:10]} 54. Ra1 {[%clk 0:00:03]}  e2 {[%clk 0:00:08]} 55. Ra6 {[%clk 0:00:01]}  f1=Q+ {[%clk 0:00:08]} 56. Kg3 {[%clk 0:00:02]}  Qdf4# {[%clk 0:00:08]} 0-1


[Site "https://www.chess.com"]

[Event "Titled Tuesday Blitz December 7 2021"]
[White "Ozen, Bahadir"]
[Black "Malka, Samuel"]
[WhiteFideId "6337058"]
[BlackFideId "20643675"]
[WhiteElo "2786"]
[BlackElo "2451"]
[Result "1/2-1/2"]
[Round "01"]
[TimeControl "180+1"]
[Date "2021.12.07"]
[WhiteClock "0:00:18"]
[BlackClock "0:00:13"]

1. Nf3 {[%clk 0:02:58]}  Nf6 {[%clk 0:02:57]} 2. e3 {[%clk 0:02:58]}  g6 {[%clk 0:02:52]} 3. Be2 {[%clk 0:02:58]}  Bg7 {[%clk 0:02:52]} 4. O-O {[%clk 0:02:58]}  O-O {[%clk 0:02:53]} 5. d4 {[%clk 0:02:59]}  d5 {[%clk 0:02:51]} 6. b4 {[%clk 0:02:59]}  Nbd7 {[%clk 0:02:41]} 7. Nbd2 {[%clk 0:02:51]}  e5 {[%clk 0:02:30]} 8. h3 {[%clk 0:02:31]}  e4 {[%clk 0:02:15]} 9. Nh2 {[%clk 0:02:31]}  h5 {[%clk 0:02:14]} 10. c4 {[%clk 0:02:30]}  c6 {[%clk 0:02:15]} 11. b5 {[%clk 0:02:29]}  c5 {[%clk 0:02:03]} 12. Bb2 {[%clk 0:02:25]}  Nh7 {[%clk 0:01:44]} 13. cxd5 {[%clk 0:02:24]}  cxd4 {[%clk 0:01:44]} 14. Bxd4 {[%clk 0:02:24]}  Bxd4 {[%clk 0:01:43]} 15. exd4 {[%clk 0:02:24]}  Ndf6 {[%clk 0:01:42]} 16. Qb3 {[%clk 0:02:16]}  Re8 {[%clk 0:01:36]} 17. Bc4 {[%clk 0:02:12]}  Qd6 {[%clk 0:01:31]} 18. Rfe1 {[%clk 0:02:09]}  h4 {[%clk 0:01:27]} 19. Ndf1 {[%clk 0:02:07]}  Ng5 {[%clk 0:01:26]} 20. a4 {[%clk 0:01:55]}  Bf5 {[%clk 0:01:12]} 21. Qa3 {[%clk 0:01:52]}  Qf4 {[%clk 0:01:01]} 22. Qe3 {[%clk 0:01:48]}  Qxe3 {[%clk 0:00:53]} 23. Nxe3 {[%clk 0:01:48]}  Rad8 {[%clk 0:00:52]} 24. Rac1 {[%clk 0:01:44]}  Kg7 {[%clk 0:00:50]} 25. Bb3 {[%clk 0:01:44]}  Rd7 {[%clk 0:00:42]} 26. Rc5 {[%clk 0:01:42]}  b6 {[%clk 0:00:42]} 27. Rc6 {[%clk 0:01:42]}  Red8 {[%clk 0:00:42]} 28. Rec1 {[%clk 0:01:42]}  Ne8 {[%clk 0:00:36]} 29. Nhg4 {[%clk 0:01:27]}  f6 {[%clk 0:00:32]} 30. Kf1 {[%clk 0:01:24]}  Nd6 {[%clk 0:00:32]} 31. Ke2 {[%clk 0:01:24]}  Ngf7 {[%clk 0:00:32]} 32. Rc7 {[%clk 0:01:22]}  Ne8 {[%clk 0:00:29]} 33. Rxd7 {[%clk 0:01:22]}  Rxd7 {[%clk 0:00:30]} 34. Rc6 {[%clk 0:01:21]}  Ned6 {[%clk 0:00:30]} 35. Nh2 {[%clk 0:01:18]}  Nd8 {[%clk 0:00:30]} 36. Rc3 {[%clk 0:01:17]}  N8b7 {[%clk 0:00:30]} 37. Nhf1 {[%clk 0:01:16]}  Na5 {[%clk 0:00:30]} 38. Ba2 {[%clk 0:01:17]}  g5 {[%clk 0:00:25]} 39. Nd2 {[%clk 0:00:46]}  Bg6 {[%clk 0:00:25]} 40. Nb3 {[%clk 0:00:46]}  Bh5+ {[%clk 0:00:25]} 41. Kd2 {[%clk 0:00:45]}  Nxb3+ {[%clk 0:00:26]} 42. Bxb3 {[%clk 0:00:46]}  f5 {[%clk 0:00:26]} 43. Rc6 {[%clk 0:00:46]}  f4 {[%clk 0:00:26]} 44. Ng4 {[%clk 0:00:44]}  Bxg4 {[%clk 0:00:25]} 45. hxg4 {[%clk 0:00:45]}  Kf6 {[%clk 0:00:24]} 46. Bc2 {[%clk 0:00:42]}  Ke7 {[%clk 0:00:24]} 47. Ke2 {[%clk 0:00:40]}  Rb7 {[%clk 0:00:18]} 48. Rc3 {[%clk 0:00:39]}  Kd7 {[%clk 0:00:18]} 49. Rc6 {[%clk 0:00:36]}  Rc7 {[%clk 0:00:18]} 50. f3 {[%clk 0:00:32]}  e3 {[%clk 0:00:17]} 51. Bg6 {[%clk 0:00:31]}  Rc8 {[%clk 0:00:16]} 52. Bd3 {[%clk 0:00:21]}  Rh8 {[%clk 0:00:16]} 53. Rc1 {[%clk 0:00:21]}  h3 {[%clk 0:00:15]} 54. Rg1 {[%clk 0:00:18]}  h2 {[%clk 0:00:13]} 55. Rh1 {[%clk 0:00:18]}  Ke7 {[%clk 0:00:13]} 56. Bc2 {[%clk 0:00:18]}  Kf6 {[%clk 0:00:14]} 57. Bd3 {[%clk 0:00:18]}  Ke7 {[%clk 0:00:13]} 1/2-1/2


[Site "https://www.chess.com"]